fUSD/lending_fUSD_20240203
["ID","MTS","AMOUNT","RATE_DAILY","PERIOD"]
[313221280,1706967073031,-1000.0,0.00035294,2]
[313221281,1706967073042,-152.57148147,0.00035325,2]
[313221282,1706967073051,-150.0,0.00035328,2]
[313221283,1706967073061,-7647.31876799,0.00035411,2]
[313221284,1706967073070,-299.27779395,0.00035446,7]
[313221285,1706967073079,-151.01474756,0.000355,30]
[313221286,1706967073089,-434.0,0.0003554,2]
[313221287,1706967073099,-183.09987742,0.00035596,2]
[313221288,1706967073108,-236.75454593,0.00035596,2]
[313221289,1706967073117,-150.0,0.00035616,2]
[313221290,1706967073126,-300.0,0.00035616,7]
[313221291,1706967073135,-450.0,0.00035616,12]
[313221292,1706967073145,-600.0,0.00035616,17]
[313221293,1706967073154,-629.83184413,0.00035616,22]
[313221294,1706967073163,-500.0,0.00035616,2]
[313221295,1706967073173,-500.0,0.00035616,2]
[313221296,1706967073183,-500.0,0.00035616,2]
[313221297,1706967073192,-500.0,0.00035616,2]
[313221298,1706967073201,-500.0,0.00035616,2]
[313221299,1706967073210,-500.0,0.00035616,2]
[313221300,1706967073220,-500.0,0.00035616,2]
[313221301,1706967073230,-500.0,0.00035616,2]
[313221302,1706967073239,-500.0,0.00035616,2]
[313221303,1706967073248,-500.0,0.00035616,2]
[313221304,1706967073258,-500.0,0.00035616,2]
[313221305,1706967073267,-500.0,0.00035616,2]
[313221306,1706967073276,-500.0,0.00035616,2]
[313221307,1706967073285,-500.0,0.00035616,2]
[313221308,1706967073295,-500.0,0.00035616,2]
[313221309,1706967073304,-500.0,0.00035616,2]
[313221310,1706967073313,-500.0,0.00035616,2]
[313221311,1706967073322,-500.0,0.00035616,2]
[313221312,1706967073332,-500.0,0.00035616,2]
[313221313,1706967073341,-500.0,0.00035616,2]
[313221314,1706967073350,-10000.0,0.00035616,2]
[313221315,1706967073360,-155.0,0.00035617,2]
[313221316,1706967073370,-299.27779395,0.00035628,7]
[313221317,1706967073379,-481.13541446,0.00035641,2]
[313221318,1706967073390,-954.44873093,0.0003568,7]
[313221319,1706967073399,-18980.34771288,0.000357,2]
[313221320,1706967073408,-18578.09899957,0.00035888,2]
[313221321,1706967073418,-329080.3998774,0.00035888,30]
[313221322,1706967073428,-150.0,0.00035905,2]
[313221323,1706967073438,-1995.02,0.00035905,2]
[313221324,1706967073447,-152.79882539,0.0003593,30]
[313221325,1706967073457,-152.57148147,0.00035947,2]
[313221326,1706967073467,-50000.0,0.00036,6]
[313221327,1706967073479,-1500.0,0.00036,2]
[313221328,1706967073488,-299.43310887,0.00036,4]
[313221329,1706967073498,-200.0,0.00036,120]
[313221330,1706967073507,-804.0,0.00036,2]
[313221331,1706967073518,-866.51,0.00036,3]
[313221332,1706967073528,-151.44896632,0.00036,2]
[313221333,1706967073538,-600.0,0.00036,2]
[313221334,1706967073549,-1009.0,0.00036,6]
[313221335,1706967073559,-2000.0,0.00036,2]
[313221336,1706967073569,-9920.0,0.00036,2]
[313221337,1706967073579,-2600.0,0.00036,3]
[313221338,1706967073590,-1044.9787944,0.00036,2]
[313221339,1706967073600,-157.84474763,0.000361,4]
[313221340,1706967073609,-210.037319,0.000361,4]
[313221341,1706967073619,-355.51,0.00036164,2]
[313221342,1706967073630,-1000.0,0.00036176,2]
[313221343,1706967073640,-158.02798028,0.00036192,7]
[313221344,1706967073649,-1102.79744205,0.000362,2]
[313221345,1706967073659,-954.44873093,0.00036224,7]
[313221346,1706967073670,-158.0,0.00036247,2]
[313221347,1706967073680,-183.09987742,0.0003626,2]
[313221348,1706967073691,-236.75454593,0.0003626,2]
[313221349,1706967073701,-205.0,0.000363,22]
[313221350,1706967073712,-256.0,0.00036327,2]
[313221351,1706967073722,-167.94,0.00036438,2]
[313221352,1706967073732,-167.94,0.00036438,90]
[313221353,1706967073742,-880.57,0.00036438,2]
[313221354,1706967073752,-150.0,0.00036482,2]
[313221355,1706967073762,-209.83896574,0.0003649,10]
[313221356,1706967073770,-152.57148147,0.00036569,2]
[313221357,1706967073779,-163.67345673,0.0003668,30]
[313221358,1706967073789,-299.27779395,0.00036718,7]
[313221359,1706967073798,-151.03304887,0.00036723,2]
[313221360,1706967073808,-154.13786525,0.00036879,7]
[313221361,1706967073817,-183.09987742,0.00036923,2]
[313221362,1706967073828,-236.75454593,0.00036923,2]
[313221363,1706967073837,-152.79882539,0.0003693,30]
[313221364,1706967073846,-10000.0,0.00036934,2]
[313221365,1706967073856,-207.0,0.00036958,23]
[313221366,1706967073865,-155.0,0.00036987,2]
[313221367,1706967073874,-7647.31876799,0.0003699,2]
[313221368,1706967073884,-4016.66256345,0.00036997,2]
[313221369,1706967073894,-50000.0,0.00037,7]
[313221370,1706967073903,-200.0,0.00037,120]
[313221371,1706967073912,-314.39022456,0.00037,4]
[313221372,1706967073922,-1000.0,0.00037,7]
[313221373,1706967073931,-75654.33746893,0.00037,2]
[313221374,1706967073941,-670.9409712,0.00037,7]
[313221375,1706967073950,-600.0,0.00037,2]
[313221376,1706967073959,-2000.0,0.00037,2]
[313221377,1706967073968,-750.0,0.00037,2]
[313221378,1706967073978,-9920.0,0.00037,2]
[313221379,1706967073987,-1800.0,0.00037,38]
[313221380,1706967073996,-179.0,0.00037,2]
[313221381,1706967074005,-1044.9787944,0.00037,2]
[313221382,1706967074015,-954.44873093,0.00037042,7]
[313221383,1706967074025,-150.0,0.00037059,2]
[313221384,1706967074036,-1000.0,0.00037059,2]
[313221385,1706967074045,-150.07996762,0.00037141,7]
[313221386,1706967074054,-152.57148147,0.00037191,2]
[313221387,1706967074063,-223.0,0.000373,7]
[313221388,1706967074073,-954.44873093,0.00037315,7]
[313221389,1706967074082,-83202.10365049,0.0003738,2]
[313221390,1706967074091,-324.61770776,0.000375,2]
[313221391,1706967074101,-500.0,0.000375,7]
[313221392,1706967074110,-524.81094541,0.00037534,14]
[313221393,1706967074118,-1995.02,0.0003754,2]
[313221394,1706967074128,-183.09987742,0.00037587,2]
[313221395,1706967074138,-236.75454593,0.00037587,2]
[313221396,1706967074147,-4043.11075736,0.0003759,2]
[313221397,1706967074156,-150.0,0.00037635,2]
[313221398,1706967074165,-153.82890557,0.0003766,7]
[313221399,1706967074175,-48137.5226428,0.00037699,2]
[313221400,1706967074185,-4007.7,0.000377,3]
[313221401,1706967074194,-4007.7,0.000377,3]
[313221402,1706967074203,-4007.7,0.000377,3]
[313221403,1706967074213,-4007.7,0.000377,3]
[313221404,1706967074222,-4007.7,0.000377,3]
[313221405,1706967074231,-4007.7,0.000377,3]
[313221406,1706967074241,-4007.7,0.000377,3]
[313221407,1706967074250,-4007.7,0.000377,3]
[313221408,1706967074259,-4007.7,0.000377,3]
[313221409,1706967074268,-4007.7,0.000377,3]
[313221410,1706967074277,-4007.7,0.000377,3]
[313221411,1706967074286,-4007.7,0.000377,3]
[313221412,1706967074296,-4007.7,0.000377,3]
[313221413,1706967074305,-4007.7,0.000377,3]
[313221414,1706967074314,-4007.7,0.000377,3]
[313221415,1706967074324,-4007.7,0.000377,3]
[313221416,1706967074333,-4007.7,0.000377,3]
[313221417,1706967074342,-4007.7,0.000377,3]
[313221418,1706967074351,-4007.7,0.000377,3]
[313221419,1706967074360,-4007.7,0.000377,3]
[313221420,1706967074369,-152.57148147,0.00037813,2]
[313221421,1706967074378,-4499.90007786,0.000379,7]
[313221422,1706967074387,-150.1,0.000379,6]
[313221423,1706967074397,-635967.816835,0.000379,3]
[313221424,1706967074406,-250.0,0.000379,7]
[313221425,1706967074415,-152.79882539,0.0003793,30]
[313221426,1706967074424,-1000.0,0.00037941,2]
[313221427,1706967074434,-158.02798028,0.0003799,7]
[313221428,1706967074443,-4016.66256345,0.00037997,2]
[313221429,1706967074452,-50000.0,0.00038,8]
[313221430,1706967074461,-3906.07193807,0.00038,14]
[313221431,1706967074475,-352393.07695295,0.00038,2]
[313221432,1706967074485,-1017.4241278,0.00038,15]
[313221433,1706967074494,-2600.0,0.00038,10]
[313221434,1706967074503,-35904.47187071,0.00038,2]
[313221435,1706967074514,-39999.999999,0.00038,7]
[313221436,1706967074524,-600.0,0.00038,2]
[313221437,1706967074534,-1649.61,0.00038,3]
[313221438,1706967074544,-2000.0,0.00038,2]
[313221439,1706967074553,-10020.06,0.00038,2]
[313221440,1706967074563,-2650.0,0.00038,3]
[313221441,1706967074573,-1044.9787944,0.00038,2]
[313221442,1706967074582,-223.0,0.000381,7]
[313221443,1706967074591,-153.82890557,0.00038102,7]
[313221444,1706967074601,-954.44873093,0.0003819,7]
[313221445,1706967074610,-150.1,0.000382,5]
[313221446,1706967074619,-150.0,0.00038212,2]
[313221447,1706967074628,-183.09987742,0.0003825,2]
[313221448,1706967074638,-236.75454593,0.0003825,2]
[313221449,1706967074647,-10000.0,0.00038252,2]
[313221450,1706967074656,-202.48295048,0.00038356,7]
[313221451,1706967074665,-263.0,0.00038356,13]
[313221452,1706967074674,-155.0,0.00038357,2]
[313221453,1706967074684,-155.55,0.00038365,2]
[313221454,1706967074693,-153.82890557,0.00038394,7]
[313221455,1706967074702,-299.27779395,0.00038404,7]
[313221456,1706967074711,-152.57148147,0.00038435,2]
[313221457,1706967074720,-561.26,0.000385,3]
[313221458,1706967074729,-7647.31876799,0.00038568,2]
[313221459,1706967074738,-1000.0,0.000387,15]
[313221460,1706967074747,-166.51155624,0.00038739,2]
[313221461,1706967074757,-299.27779395,0.00038761,7]
[313221462,1706967074766,-150.0,0.00038789,2]
[313221463,1706967074775,-21417.66050301,0.000388,4]
[313221464,1706967074784,-1000.0,0.00038824,2]
[313221465,1706967074793,-14512.95782482,0.0003888,2]
[313221466,1706967074804,-14512.95782478,0.0003888,2]
[313221467,1706967074815,-14512.95782478,0.0003888,2]
[313221468,1706967074825,-14512.95782478,0.0003888,2]
[313221469,1706967074834,-14512.95782478,0.0003888,2]
[313221470,1706967074843,-14512.95782478,0.0003888,2]
[313221471,1706967074852,-14512.95782478,0.0003888,2]
[313221472,1706967074862,-14512.95782478,0.0003888,2]
[313221473,1706967074871,-14512.95782478,0.0003888,2]
[313221474,1706967074880,-14512.95782478,0.0003888,2]
[313221475,1706967074889,-954.44873093,0.00038886,7]
[313221476,1706967074898,-4021.20666775,0.000389,15]
[313221477,1706967074907,-223.0,0.000389,7]
[313221478,1706967074916,-483.45084644,0.000389,9]
[313221479,1706967074925,-483.45084642,0.000389,9]
[313221480,1706967074936,-483.45084642,0.000389,9]
[313221481,1706967074946,-483.45084642,0.000389,9]
[313221482,1706967074955,-483.45084642,0.000389,9]
[313221483,1706967074966,-483.45084642,0.000389,9]
[313221484,1706967074975,-483.45084642,0.000389,9]
[313221485,1706967074984,-483.45084642,0.000389,9]
[313221486,1706967074993,-483.45084642,0.000389,9]
[313221487,1706967075004,-281.23,0.00038904,2]
[313221488,1706967075013,-150.0,0.00038904,2]
[313221489,1706967075024,-150.0,0.00038904,2]
[313221490,1706967075034,-150.0,0.00038904,2]
[313221491,1706967075044,-150.0,0.00038904,2]
[313221492,1706967075055,-150.0,0.00038904,2]
[313221493,1706967075064,-150.0,0.00038904,2]
[313221494,1706967075074,-150.0,0.00038904,2]
[313221495,1706967075082,-150.0,0.00038904,2]
[313221496,1706967075091,-150.0,0.00038904,2]
[313221497,1706967075204,-150.0,0.00038904,2]
[313221498,1706967075214,-158.53,0.00038904,2]
[313221499,1706967075223,-155.94,0.00038904,2]
[313221500,1706967075233,-183.09987742,0.00038914,2]
[313221501,1706967075242,-236.75454593,0.00038914,2]
[313221502,1706967075251,-152.79882539,0.0003893,30]
[313221503,1706967075260,-205.0,0.00038933,26]
[313221504,1706967075269,-153.82890557,0.00038944,7]
[313221505,1706967075279,-282.90203062,0.0003898,2]
[313221506,1706967075288,-50000.0,0.00039,9]
[313221507,1706967075297,-1460.36637341,0.00039,2]
[313221508,1706967075307,-1433.14480854,0.00039,2]
[313221509,1706967075317,-982.72122659,0.00039,4]
[313221510,1706967075327,-624.37029009,0.00039,4]
[313221511,1706967075337,-226.58458413,0.00039,5]
[313221512,1706967075347,-302.94832415,0.00039,40]
[313221513,1706967075357,-1887.66,0.00039,4]
[313221514,1706967075367,-2000.0,0.00039,2]
[313221515,1706967075377,-244615.0,0.00039,2]
[313221516,1706967075386,-3000.0,0.00039,24]
[313221517,1706967075395,-1569.11125285,0.00039,2]
[313221518,1706967075404,-1044.9787944,0.00039,2]
[313221519,1706967075414,-3000.0,0.0003901,24]
[313221520,1706967075423,-5444.144373,0.0003902,24]
[313221521,1706967075432,-152.57148147,0.00039057,3]
[313221522,1706967075442,-151.03304887,0.00039063,2]
[313221523,1706967075451,-1000.0,0.000391,15]
[313221524,1706967075461,-1995.02,0.00039175,2]
[313221525,1706967075472,-1000.0,0.0003926,2]
[313221526,1706967075481,-150.0,0.00039366,2]
[313221527,1706967075490,-10000.0,0.0003957,2]
[313221528,1706967075500,-183.09987742,0.00039577,2]
[313221529,1706967075509,-236.75454593,0.00039577,2]
[313221530,1706967075519,-1000.0,0.000396,15]
[313221531,1706967075528,-152.57148147,0.00039679,5]
[313221532,1706967075538,-1000.0,0.000397,15]
[313221533,1706967075547,-1000.0,0.00039706,2]
[313221534,1706967075557,-155.0,0.00039727,2]
[313221535,1706967075566,-256.0,0.00039728,2]
[313221536,1706967075575,-158.02798028,0.00039772,7]
[313221537,1706967075585,-223.0,0.000398,7]
[313221538,1706967075594,-1000.0,0.000399,15]
[313221539,1706967075604,-150.0,0.00039942,2]
[313221540,1706967075613,-299.27779395,0.00039972,7]
[313221541,1706967075622,-190.68561975,0.0003998,5]
[313221542,1706967075632,-4016.66256345,0.00039987,2]
[313221543,1706967075641,-285135.26648355,0.0003999,2]
[313221544,1706967075650,-100000.0,0.0004,10]
[313221545,1706967075660,-155.0,0.0004,2]
[313221546,1706967075669,-1086.62982394,0.0004,10]
[313221547,1706967075678,-199.22366054,0.0004,4]
[313221548,1706967075688,-1090.5417209,0.0004,4]
[313221549,1706967075697,-286.75695691,0.0004,4]
[313221550,1706967075706,-574.24868674,0.0004,4]
[313221551,1706967075715,-313.04147607,0.0004,4]
[313221552,1706967075725,-181.16284603,0.0004,2]
[313221553,1706967075734,-327.78057413,0.0004,30]
[313221554,1706967075744,-9154.99959064,0.0004,2]
[313221555,1706967075753,-8989.61734675,0.0004,2]
[313221556,1706967075762,-1145.03107964,0.0004,2]
[313221557,1706967075771,-9283.48884688,0.0004,2]
[313221558,1706967075780,-5360.61125834,0.0004,2]
[313221559,1706967075789,-1507.67527343,0.0004,2]
[313221560,1706967075798,-201.16041946,0.0004,2]
[313221561,1706967075807,-3762.61832175,0.0004,2]
[313221562,1706967075816,-2166.57670313,0.0004,7]
[313221563,1706967075825,-2550.0,0.0004,14]
[313221564,1706967075834,-10897.0,0.0004,7]
[313221565,1706967075843,-300.36644709,0.0004,120]
[313221566,1706967075852,-1578.74163794,0.0004,2]
[313221567,1706967075861,-300.0,0.0004,2]
[313221568,1706967075871,-679.0,0.0004,9]
[313221569,1706967075879,-1026.0,0.0004,8]
[313221570,1706967075889,-1092.84162518,0.0004,2]
[313221571,1706967075898,-2366.38942597,0.0004,4]
[313221572,1706967075907,-2290.37810665,0.0004,4]
[313221573,1706967075916,-22169.11688574,0.0004,4]
[313221574,1706967075925,-156.82686781,0.0004,3]
[313221575,1706967075934,-7871.88790451,0.0004,120]
[313221576,1706967075943,-5000.0,0.0004,30]
[313221577,1706967075952,-4582.06106581,0.0004,15]
[313221578,1706967075961,-15492.61111741,0.0004,6]
[313221579,1706967075970,-2049.62,0.0004,3]
[313221580,1706967075979,-151.02080027,0.0004,30]
[313221581,1706967075988,-2632.35510969,0.0004,7]
[313221582,1706967075997,-214.53014344,0.0004,2]
[313221583,1706967076006,-500.0,0.0004,10]
[313221584,1706967076015,-2295.2861867,0.0004,3]
[313221585,1706967076024,-155.0,0.0004,4]
[313221586,1706967076033,-300.0,0.0004,30]
[313221587,1706967076042,-2688.41,0.0004,5]
[313221588,1706967076051,-1500.0,0.0004,4]
[313221589,1706967076060,-2000.0,0.0004,2]
[313221590,1706967076070,-2247.81843351,0.0004,4]
[313221591,1706967076081,-53126.55441604,0.0004,2]
[313221592,1706967076090,-574.56468648,0.0004,30]
[313221593,1706967076098,-834.01653083,0.0004,120]
[313221594,1706967076107,-435.04,0.0004,13]
[313221595,1706967076117,-461.864,0.0004,14]
[313221596,1706967076126,-255.0,0.0004,12]
[313221597,1706967076135,-2700.0,0.0004,3]
[313221598,1706967076144,-2010.0256,0.0004,5]
[313221599,1706967076153,-255.0,0.0004,12]
[313221600,1706967076161,-255.0,0.0004,12]
[313221601,1706967076170,-255.0,0.0004,12]
[313221602,1706967076179,-200.0,0.0004,41]
[313221603,1706967076188,-1345.9,0.0004,8]
[313221604,1706967076197,-1306.4410918,0.0004,2]
[313221605,1706967076205,-255.0,0.0004,12]
[313221606,1706967076215,-255.0,0.0004,12]
[313221607,1706967076223,-5000.0,0.0004,35]
[313221608,1706967076233,-255.0,0.0004,12]
[313221609,1706967076242,-5000.0,0.0004,35]
[313221610,1706967076251,-954.44873093,0.00040062,30]
[313221611,1706967076260,-1000.0,0.000401,30]
[313221612,1706967076269,-152.22,0.000401,4]
[313221613,1706967076279,-152.22,0.000401,4]
[313221614,1706967076288,-152.22,0.000401,4]
[313221615,1706967076298,-152.22,0.000401,4]
[313221616,1706967076307,-152.22,0.000401,4]
[313221617,1706967076316,-152.22,0.000401,4]
[313221618,1706967076325,-152.22,0.000401,4]
[313221619,1706967076334,-152.22,0.000401,4]
[313221620,1706967076343,-152.22,0.000401,4]
[313221621,1706967076352,-152.22,0.000401,4]
[313221622,1706967076361,-152.22,0.000401,4]
[313221623,1706967076371,-152.22,0.000401,4]
[313221624,1706967076379,-152.22,0.000401,4]
[313221625,1706967076389,-152.22,0.000401,4]
[313221626,1706967076398,-152.22,0.000401,4]
[313221627,1706967076407,-152.22,0.000401,4]
[313221628,1706967076416,-152.22,0.000401,4]
[313221629,1706967076425,-152.22,0.000401,4]
[313221630,1706967076435,-7647.31876799,0.00040147,5]
[313221631,1706967076444,-1000.0,0.000402,30]
[313221632,1706967076454,-300.0,0.000402,30]
[313221633,1706967076463,-299.27779395,0.00040213,30]
[313221634,1706967076476,-183.09987742,0.00040241,3]
[313221635,1706967076486,-236.75454593,0.00040241,3]
[313221636,1706967076495,-159.5350938,0.000403,4]
[313221637,1706967076505,-1000.0,0.000403,15]
[313221638,1706967076515,-152.57148147,0.00040302,7]
[313221639,1706967076524,-1000.0,0.000404,30]
[313221640,1706967076533,-300.0,0.000404,30]
[313221641,1706967076542,-153.82890557,0.00040413,30]
[313221642,1706967076553,-150.07996762,0.00040419,30]
[313221643,1706967076563,-150.0,0.00040519,2]
[313221644,1706967076572,-534.974774,0.00040553,2]
[313221645,1706967076581,-298.002477,0.00040553,2]
[313221646,1706967076591,-177.363125,0.00040553,2]
[313221647,1706967076600,-178.082238,0.00040553,2]
[313221648,1706967076609,-391.971729,0.00040553,2]
[313221649,1706967076618,-447.003716,0.00040553,2]
[313221650,1706967076627,-425.990499,0.00040553,2]
[313221651,1706967076636,-192.849835,0.00040553,2]
[313221652,1706967076645,-198.086897,0.00040553,2]
[313221653,1706967076655,-1000.0,0.00040588,4]
[313221654,1706967076663,-467.34412765,0.000406,30]
[313221655,1706967076672,-223.0,0.000406,7]
[313221656,1706967076682,-355.51,0.00040685,2]
[313221657,1706967076691,-1000.0,0.00040733,2]
[313221658,1706967076700,-299.27779395,0.00040734,30]
[313221659,1706967076710,-1995.02,0.0004081,2]
[313221660,1706967076719,-153.82890557,0.00040842,30]
[313221661,1706967076728,-10000.0,0.00040888,2]
[313221662,1706967076737,-153.82890557,0.00040901,30]
[313221663,1706967076746,-183.09987742,0.00040904,3]
[313221664,1706967076756,-236.75454593,0.00040904,3]
[313221665,1706967076765,-152.57148147,0.00040924,10]
[313221666,1706967076774,-151.0,0.00040972,2]
[313221667,1706967076783,-250.49088,0.00040972,2]
[313221668,1706967076793,-100000.0,0.00041,11]
[313221669,1706967076802,-800.0,0.00041,2]
[313221670,1706967076811,-483.91211123,0.00041,5]
[313221671,1706967076820,-2000.0,0.00041,7]
[313221672,1706967076829,-2311.61,0.00041,6]
[313221673,1706967076838,-2000.0,0.00041,2]
[313221674,1706967076847,-137254.39632546,0.00041,2]
[313221675,1706967076856,-160.85146444,0.00041,33]
[313221676,1706967076865,-900.0,0.00041,42]
[313221677,1706967076874,-520.445475,0.00041,14]
[313221678,1706967076883,-258.890024,0.00041,45]
[313221679,1706967076892,-1306.4410918,0.00041,2]
[313221680,1706967076901,-679.97359133,0.00041046,13]
[313221681,1706967076911,-679.97359128,0.00041046,13]
[313221682,1706967076920,-679.97359128,0.00041046,13]
[313221683,1706967076930,-679.97359128,0.00041046,13]
[313221684,1706967076939,-679.97359128,0.00041046,13]
[313221685,1706967076948,-679.97359128,0.00041046,13]
[313221686,1706967076957,-534.974774,0.0004106,2]
[313221687,1706967076967,-298.002477,0.0004106,2]
[313221688,1706967076976,-391.971729,0.0004106,2]
[313221689,1706967076985,-447.003716,0.0004106,2]
[313221690,1706967076995,-425.990499,0.0004106,2]
[313221691,1706967077004,-191.16061133,0.00041092,2]
[313221692,1706967077013,-1000.0,0.00041095,30]
[313221693,1706967077023,-926.19623009,0.00041095,30]
[313221694,1706967077033,-1000.0,0.00041095,2]
[313221695,1706967077042,-220.21287456,0.00041095,2]
[313221696,1706967077051,-500.0,0.00041095,2]
[313221697,1706967077061,-500.0,0.00041095,2]
[313221698,1706967077070,-649.68119223,0.00041095,2]
[313221699,1706967077080,-249.89004829,0.00041095,2]
[313221700,1706967077089,-2500.0,0.00041095,2]
[313221701,1706967077099,-1000.0,0.00041095,120]
[313221702,1706967077109,-1000.0,0.00041095,120]
[313221703,1706967077118,-1000.0,0.00041095,120]
[313221704,1706967077129,-1000.0,0.00041095,120]
[313221705,1706967077138,-1000.0,0.00041095,120]
[313221706,1706967077148,-1000.0,0.00041095,120]
[313221707,1706967077157,-1000.0,0.00041095,120]
[313221708,1706967077167,-1000.0,0.00041095,120]
[313221709,1706967077176,-1000.0,0.00041095,120]
[313221710,1706967077187,-1000.0,0.00041095,120]
[313221711,1706967077196,-1000.0,0.00041095,120]
[313221712,1706967077206,-1000.0,0.00041095,120]
[313221713,1706967077217,-1000.0,0.00041095,120]
[313221714,1706967077227,-1000.0,0.00041095,120]
[313221715,1706967077238,-1000.0,0.00041095,120]
[313221716,1706967077248,-1000.0,0.00041095,120]
[313221717,1706967077257,-1000.0,0.00041095,120]
[313221718,1706967077266,-1000.0,0.00041095,120]
[313221719,1706967077276,-1024.62946411,0.00041095,120]
[313221720,1706967077285,-500.0,0.00041095,7]
[313221721,1706967077294,-500.0,0.00041095,7]
[313221722,1706967077303,-500.0,0.00041095,7]
[313221723,1706967077313,-279.58541874,0.00041095,7]
[313221724,1706967077322,-240.63606281,0.00041096,2]
[313221725,1706967077332,-150.1,0.00041096,2]
[313221726,1706967077341,-151.0,0.00041096,14]
[313221727,1706967077350,-151.0,0.00041096,14]
[313221728,1706967077360,-256.593003,0.00041096,14]
[313221729,1706967077370,-151.0,0.00041096,14]
[313221730,1706967077379,-151.0,0.00041096,14]
[313221731,1706967077388,-151.0,0.00041096,14]
[313221732,1706967077398,-151.0,0.00041096,14]
[313221733,1706967077407,-232.613586,0.00041096,14]
[313221734,1706967077417,-500.0,0.00041096,14]
[313221735,1706967077426,-500.0,0.00041096,14]
[313221736,1706967077436,-500.0,0.00041096,14]
[313221737,1706967077445,-500.0,0.00041096,14]
[313221738,1706967077561,-500.0,0.00041096,14]
[313221739,1706967077571,-500.0,0.00041096,14]
[313221740,1706967077581,-500.0,0.00041096,14]
[313221741,1706967077590,-500.0,0.00041096,14]
[313221742,1706967077599,-500.0,0.00041096,14]
[313221743,1706967077609,-500.0,0.00041096,14]
[313221744,1706967077619,-500.0,0.00041096,14]
[313221745,1706967077629,-500.0,0.00041096,14]
[313221746,1706967077639,-500.0,0.00041096,14]
[313221747,1706967077648,-500.0,0.00041096,14]
[313221748,1706967077657,-500.0,0.00041096,14]
[313221749,1706967077667,-500.0,0.00041096,14]
[313221750,1706967077676,-500.0,0.00041096,14]
[313221751,1706967077686,-500.0,0.00041096,14]
[313221752,1706967077696,-151.0,0.00041096,14]
[313221753,1706967077706,-500.0,0.00041096,14]
[313221754,1706967077715,-151.0,0.00041096,14]
[313221755,1706967077725,-500.0,0.00041096,14]
[313221756,1706967077734,-151.0,0.00041096,14]
[313221757,1706967077744,-151.0,0.00041096,14]
[313221758,1706967077753,-151.0,0.00041096,14]
[313221759,1706967077763,-198.602086,0.00041096,14]
[313221760,1706967077772,-151.0,0.00041096,14]
[313221761,1706967077782,-151.0,0.00041096,14]
[313221762,1706967077791,-151.0,0.00041096,14]
[313221763,1706967077801,-289.393702,0.00041096,14]
[313221764,1706967077810,-151.0,0.00041096,14]
[313221765,1706967077819,-151.0,0.00041096,14]
[313221766,1706967077828,-151.0,0.00041096,14]
[313221767,1706967077837,-151.0,0.00041096,14]
[313221768,1706967077846,-151.0,0.00041096,14]
[313221769,1706967077856,-271.597885,0.00041096,14]
[313221770,1706967077865,-151.0,0.00041096,14]
[313221771,1706967077875,-151.0,0.00041096,14]
[313221772,1706967077884,-151.0,0.00041096,14]
[313221773,1706967077893,-151.0,0.00041096,14]
[313221774,1706967077902,-294.814212,0.00041096,14]
[313221775,1706967077912,-151.0,0.00041096,14]
[313221776,1706967077922,-151.0,0.00041096,14]
[313221777,1706967077932,-151.0,0.00041096,14]
[313221778,1706967077941,-151.0,0.00041096,14]
[313221779,1706967077950,-151.0,0.00041096,14]